fUSD/lending_fUSD_20241121
["ID","MTS","AMOUNT","RATE_DAILY","PERIOD"]
[342859866,1732187474570,-500.0,0.00041095,18]
[342859867,1732187474580,-500.0,0.00041095,18]
[342859868,1732187474590,-500.0,0.00041095,18]
[342859869,1732187474600,-500.0,0.00041095,18]
[342859870,1732187474610,-500.0,0.00041095,18]
[342859871,1732187474619,-500.0,0.00041095,18]
[342859872,1732187474629,-233.11988052,0.00041095,18]
[342859873,1732187474639,-865.38,0.00041095,18]
[342859874,1732187474649,-500.0,0.00041095,18]
[342859875,1732187474659,-500.0,0.00041095,18]
[342859876,1732187474670,-500.0,0.00041095,18]
[342859877,1732187474680,-1483.87,0.00041095,18]
[342859878,1732187474690,-500.0,0.00041095,18]
[342859879,1732187474701,-151.0,0.00041095,14]
[342859880,1732187474711,-1921.64,0.00041095,18]
[342859881,1732187474723,-151.0,0.00041095,14]
[342859882,1732187474734,-500.0,0.00041095,18]
[342859883,1732187474744,-500.0,0.00041095,18]
[342859884,1732187474754,-151.0,0.00041095,14]
[342859885,1732187474764,-500.0,0.00041095,18]
[342859886,1732187474774,-500.0,0.00041095,18]
[342859887,1732187474784,-500.0,0.00041095,18]
[342859888,1732187474794,-500.0,0.00041095,18]
[342859889,1732187474804,-531.4,0.00041095,18]
[342859890,1732187474814,-1707.15,0.00041095,18]
[342859891,1732187474824,-1887.77,0.00041095,18]
[342859892,1732187474835,-500.0,0.00041095,18]
[342859893,1732187474845,-500.0,0.00041095,18]
[342859894,1732187474855,-1013.97,0.00041095,18]
[342859895,1732187474865,-500.0,0.00041095,18]
[342859896,1732187474876,-1166.04,0.00041095,18]
[342859897,1732187474887,-500.0,0.00041095,18]
[342859898,1732187474898,-500.0,0.00041095,18]
[342859899,1732187474908,-1141.73,0.00041095,18]
[342859900,1732187474920,-500.0,0.00041095,18]
[342859901,1732187474931,-2495.13,0.00041095,18]
[342859902,1732187474942,-500.0,0.00041095,18]
[342859903,1732187474952,-500.0,0.00041095,18]
[342859904,1732187474963,-818.49,0.00041095,18]
[342859905,1732187475303,-500.0,0.00041095,18]
[342859906,1732187475313,-500.0,0.00041095,18]
[342859907,1732187475323,-500.0,0.00041095,18]
[342859908,1732187475332,-527.00978824,0.00041095,7]
[342859909,1732187475342,-500.0,0.00041095,18]
[342859910,1732187475352,-1244.19,0.00041095,18]
[342859911,1732187475362,-3627.66,0.00041095,18]
[342859912,1732187475372,-482.59410647,0.00041095,18]
[342859913,1732187475382,-500.0,0.00041095,18]
[342859914,1732187475392,-219.150738,0.00041095,14]
[342859915,1732187475402,-219.150738,0.00041095,14]
[342859916,1732187475412,-219.150738,0.00041095,14]
[342859917,1732187475421,-500.0,0.00041095,18]
[342859918,1732187475431,-500.0,0.00041095,18]
[342859919,1732187475441,-1800.99,0.00041095,18]
[342859920,1732187475450,-500.0,0.00041095,18]
[342859921,1732187475459,-500.0,0.00041095,18]
[342859922,1732187475468,-1575.65,0.00041095,18]
[342859923,1732187475480,-500.0,0.00041095,18]
[342859924,1732187475490,-500.0,0.00041095,18]
[342859925,1732187475500,-500.0,0.00041095,18]
[342859926,1732187475509,-592.92,0.00041095,18]
[342859927,1732187475519,-219.150738,0.00041095,14]
[342859928,1732187475528,-219.150738,0.00041095,14]
[342859929,1732187475538,-156.14931141,0.00041095,2]
[342859930,1732187475548,-527.82,0.00041095,18]
[342859931,1732187475557,-219.150738,0.00041095,14]
[342859932,1732187475566,-500.0,0.00041095,18]
[342859933,1732187475576,-559.53,0.00041095,18]
[342859934,1732187475585,-500.0,0.00041095,18]
[342859935,1732187475594,-500.0,0.00041095,18]
[342859936,1732187475604,-634.16,0.00041095,18]
[342859937,1732187475613,-500.0,0.00041095,18]
[342859938,1732187475623,-500.0,0.00041095,18]
[342859939,1732187475632,-292.15350685,0.00041095,18]
[342859940,1732187475642,-862.29,0.00041095,18]
[342859941,1732187475652,-500.0,0.00041095,18]
[342859942,1732187475661,-500.0,0.00041095,18]
[342859943,1732187475670,-158.794962,0.00041095,14]
[342859944,1732187475679,-500.0,0.00041095,18]
[342859945,1732187475689,-1302.0,0.00041095,18]
[342859946,1732187475698,-646.74,0.00041095,18]
[342859947,1732187475708,-158.794962,0.00041095,14]
[342859948,1732187475717,-158.794962,0.00041095,14]
[342859949,1732187475729,-934.82,0.00041095,18]
[342859950,1732187475739,-500.0,0.00041095,18]
[342859951,1732187475750,-762.08,0.00041095,18]
[342859952,1732187475760,-158.794962,0.00041095,14]
[342859953,1732187475769,-500.0,0.00041095,18]
[342859954,1732187475779,-500.0,0.00041095,18]
[342859955,1732187475789,-158.794962,0.00041095,14]
[342859956,1732187475799,-1109.08,0.00041095,18]
[342859957,1732187475809,-158.794962,0.00041095,14]
[342859958,1732187475819,-500.0,0.00041095,18]
[342859959,1732187475829,-500.0,0.00041095,18]
[342859960,1732187475839,-151.0,0.00041095,14]
[342859961,1732187475848,-1630.288366,0.00041095,14]
[342859962,1732187475858,-151.0,0.00041095,14]
[342859963,1732187475868,-1630.288366,0.00041095,14]
[342859964,1732187475877,-151.0,0.00041095,14]
[342859965,1732187475888,-500.0,0.00041095,18]
[342859966,1732187475897,-500.0,0.00041095,18]
[342859967,1732187475907,-1630.288366,0.00041095,14]
[342859968,1732187475917,-500.0,0.00041095,18]
[342859969,1732187475927,-812.39,0.00041095,18]
[342859970,1732187475936,-500.0,0.00041095,18]
[342859971,1732187475946,-1105.76,0.00041095,18]
[342859972,1732187475955,-500.0,0.00041095,18]
[342859973,1732187475965,-500.0,0.00041095,18]
[342859974,1732187475975,-817.99,0.00041095,18]
[342859975,1732187475985,-3263.97,0.00041095,18]
[342859976,1732187475995,-500.0,0.00041095,18]
[342859977,1732187476004,-500.0,0.00041095,18]
[342859978,1732187476014,-500.0,0.00041095,18]
[342859979,1732187476023,-500.0,0.00041095,18]
[342859980,1732187476032,-526.35667602,0.00041095,18]
[342859981,1732187476042,-1630.288366,0.00041095,14]
[342859982,1732187476051,-2998.84,0.00041095,18]
[342859983,1732187476060,-700.0,0.00041095,18]
[342859984,1732187476070,-1630.288366,0.00041095,14]
[342859985,1732187476079,-668.09,0.00041095,18]
[342859986,1732187476089,-1630.288366,0.00041095,14]
[342859987,1732187476098,-1900.17,0.00041095,18]
[342859988,1732187476108,-500.0,0.00041095,18]
[342859989,1732187476118,-500.0,0.00041095,18]
[342859990,1732187476127,-500.0,0.00041095,18]
[342859991,1732187476137,-500.0,0.00041095,18]
[342859992,1732187476148,-1013.99,0.00041095,18]
[342859993,1732187476158,-500.0,0.00041095,2]
[342859994,1732187476168,-500.0,0.00041095,18]
[342859995,1732187476177,-500.0,0.00041095,18]
[342859996,1732187476187,-1599.65,0.00041095,18]
[342859997,1732187476198,-500.0,0.00041095,18]
[342859998,1732187476207,-594.2,0.00041095,18]
[342859999,1732187476216,-2903.5,0.00041095,18]
[342860000,1732187476226,-500.0,0.00041095,18]
[342860001,1732187476238,-500.0,0.00041095,18]
[342860002,1732187476248,-500.0,0.00041095,18]
[342860003,1732187476258,-500.0,0.00041095,18]
[342860004,1732187476267,-1531.22,0.00041095,18]
[342860005,1732187476278,-500.0,0.00041095,18]
[342860006,1732187476287,-500.0,0.00041095,18]
[342860007,1732187476297,-500.0,0.00041095,18]
[342860008,1732187476306,-500.0,0.00041095,18]
[342860009,1732187476316,-500.0,0.00041095,18]
[342860010,1732187476326,-2963.56,0.00041095,18]
[342860011,1732187476335,-500.0,0.00041095,18]
[342860012,1732187476345,-151.0,0.00041095,14]
[342860013,1732187476355,-500.0,0.00041095,18]
[342860014,1732187476364,-151.0,0.00041095,14]
[342860015,1732187476374,-1103.25,0.00041095,18]
[342860016,1732187476383,-151.0,0.00041095,14]
[342860017,1732187476393,-500.0,0.00041095,18]
[342860018,1732187476402,-1629.46,0.00041095,18]
[342860019,1732187476411,-1723.36,0.00041095,18]
[342860020,1732187476421,-500.0,0.00041095,18]
[342860021,1732187476430,-500.0,0.00041095,18]
[342860022,1732187476440,-1289.03,0.00041095,18]
[342860023,1732187476449,-583.3,0.00041095,18]
[342860024,1732187476459,-1085.89,0.00041095,18]
[342860025,1732187476468,-500.0,0.00041095,18]
[342860026,1732187476479,-500.0,0.00041095,18]
[342860027,1732187476488,-1250.99,0.00041095,18]
[342860028,1732187476498,-500.0,0.00041095,18]
[342860029,1732187476508,-500.0,0.00041095,18]
[342860030,1732187476517,-4918.32,0.00041095,18]
[342860031,1732187476526,-848.72,0.00041095,18]
[342860032,1732187476535,-4913.37,0.00041095,18]
[342860033,1732187476545,-932.26,0.00041095,18]
[342860034,1732187476555,-500.0,0.00041095,18]
[342860035,1732187476565,-500.0,0.00041095,18]
[342860036,1732187476575,-500.0,0.00041095,18]
[342860037,1732187476584,-4766.21,0.00041095,18]
[342860038,1732187476595,-1144.32,0.00041095,18]
[342860039,1732187476605,-500.0,0.00041095,18]
[342860040,1732187476615,-500.0,0.00041095,18]
[342860041,1732187476625,-500.0,0.00041095,18]
[342860042,1732187476635,-591.83384444,0.00041095,18]
[342860043,1732187476647,-500.0,0.00041095,18]
[342860044,1732187476657,-500.0,0.00041095,18]
[342860045,1732187476667,-1756.69,0.00041095,18]
[342860046,1732187476676,-4874.22,0.00041095,18]
[342860047,1732187476685,-500.0,0.00041095,18]
[342860048,1732187476696,-500.0,0.00041095,18]
[342860049,1732187476706,-500.0,0.00041095,18]
[342860050,1732187476715,-500.0,0.00041095,18]
[342860051,1732187476727,-500.0,0.00041095,18]
[342860052,1732187476738,-500.0,0.00041095,18]
[342860053,1732187476750,-500.0,0.00041095,18]
[342860054,1732187476760,-151.0,0.00041095,14]
[342860055,1732187476770,-698.72,0.00041095,18]
[342860056,1732187476780,-501.56383353,0.00041095,18]
[342860057,1732187476790,-546.39,0.00041095,18]
[342860058,1732187476800,-151.0,0.00041095,14]
[342860059,1732187476811,-151.0,0.00041095,14]
[342860060,1732187476820,-371.6025011,0.00041095,18]
[342860061,1732187476830,-2720.9,0.00041095,18]
[342860062,1732187476840,-302.84997181,0.00041095,18]
[342860063,1732187476851,-500.0,0.00041095,18]
[342860064,1732187476861,-667.93,0.00041095,18]
[342860065,1732187476871,-500.0,0.00041095,18]
[342860066,1732187476881,-761.06,0.00041095,18]
[342860067,1732187476892,-500.0,0.00041095,18]
[342860068,1732187476902,-2689.96,0.00041095,18]
[342860069,1732187476911,-500.0,0.00041095,18]
[342860070,1732187476921,-973.31,0.00041095,18]
[342860071,1732187476931,-500.0,0.00041095,18]
[342860072,1732187476940,-622.04,0.00041095,18]
[342860073,1732187476950,-929.04,0.00041095,18]
[342860074,1732187476959,-500.0,0.00041095,18]
[342860075,1732187476969,-500.0,0.00041095,18]
[342860076,1732187476981,-759.0,0.00041095,18]
[342860077,1732187476990,-500.0,0.00041095,18]
[342860078,1732187476999,-586.25758641,0.00041095,18]
[342860079,1732187477008,-882.0,0.00041095,18]
[342860080,1732187477018,-1841.46,0.00041095,18]
[342860081,1732187477028,-151.0,0.00041095,14]
[342860082,1732187477037,-500.0,0.00041095,18]
[342860083,1732187477046,-151.0,0.00041095,14]
[342860084,1732187477056,-1030.05,0.00041095,18]
[342860085,1732187477066,-500.0,0.00041095,18]
[342860086,1732187477075,-151.0,0.00041095,14]
[342860087,1732187477084,-500.0,0.00041095,18]
[342860088,1732187477094,-1570.83,0.00041095,18]
[342860089,1732187477103,-500.50785292,0.00041095,18]
[342860090,1732187477113,-2294.42,0.00041095,18]
[342860091,1732187477123,-500.0,0.00041095,18]
[342860092,1732187477132,-500.0,0.00041095,18]
[342860093,1732187477142,-777.6,0.00041095,18]
[342860094,1732187477151,-277.238361,0.00041095,14]
[342860095,1732187477162,-151.0,0.00041095,14]
[342860096,1732187477171,-508.47,0.00041095,18]
[342860097,1732187477181,-184.331406,0.00041095,14]
[342860098,1732187477193,-500.0,0.00041095,18]
[342860099,1732187477203,-504.28447762,0.00041095,3]
[342860100,1732187477212,-500.0,0.00041095,18]
[342860101,1732187477221,-500.0,0.00041095,18]
[342860102,1732187477236,-541.22,0.00041095,18]
[342860103,1732187477248,-582.27,0.00041095,18]
[342860104,1732187477257,-1131.04,0.00041095,18]
[342860105,1732187477268,-617.03,0.00041095,18]
[342860106,1732187477283,-1624.36,0.00041095,18]
[342860107,1732187477294,-500.0,0.00041095,18]
[342860108,1732187477304,-585.4,0.00041095,18]
[342860109,1732187477314,-1506.23,0.00041095,18]
[342860110,1732187477324,-1260.4,0.00041095,18]
[342860111,1732187477333,-1067.53,0.00041095,18]
[342860112,1732187477343,-316.72998454,0.00041095,18]
[342860113,1732187477353,-1475.77,0.00041095,18]
[342860114,1732187477363,-500.0,0.00041095,18]
[342860115,1732187477372,-151.0,0.00041095,14]
[342860116,1732187477382,-151.0,0.00041095,14]
[342860117,1732187477391,-151.0,0.00041095,14]
[342860118,1732187477400,-500.0,0.00041095,18]
[342860119,1732187477410,-500.0,0.00041095,18]
[342860120,1732187477419,-500.0,0.00041095,18]
[342860121,1732187477429,-500.0,0.00041095,18]
[342860122,1732187477438,-783.82,0.00041095,18]
[342860123,1732187477447,-3040.67,0.00041095,18]
[342860124,1732187477456,-500.0,0.00041095,18]
[342860125,1732187477466,-500.0,0.00041095,18]
[342860126,1732187477479,-500.0,0.00041095,18]
[342860127,1732187477489,-707.2,0.00041095,18]
[342860128,1732187477498,-1334.84,0.00041095,18]
[342860129,1732187477507,-500.0,0.00041095,18]
[342860130,1732187477516,-580.67,0.00041095,18]
[342860131,1732187477525,-1765.83,0.00041095,18]
[342860132,1732187477534,-1202.1,0.00041095,18]
[342860133,1732187477544,-500.0,0.00041095,18]
[342860134,1732187477553,-500.0,0.00041095,18]
[342860135,1732187477562,-500.0,0.00041095,18]
[342860136,1732187477574,-500.0,0.00041095,18]
[342860137,1732187477584,-151.0,0.00041095,14]
[342860138,1732187477593,-500.0,0.00041095,18]
[342860139,1732187477602,-151.0,0.00041095,14]
[342860140,1732187477611,-151.0,0.00041095,14]
[342860141,1732187477624,-529.04,0.00041095,18]
[342860142,1732187477634,-500.0,0.00041095,18]
[342860143,1732187477643,-151.0,0.00041095,14]
[342860144,1732187477653,-500.0,0.00041095,18]
[342860145,1732187477662,-500.0,0.00041095,18]
[342860146,1732187477671,-500.0,0.00041095,18]
[342860147,1732187477681,-500.0,0.00041095,18]
[342860148,1732187477690,-1597.01,0.00041095,18]
[342860149,1732187477699,-558.13062886,0.00041095,18]
[342860150,1732187477708,-1247.32,0.00041095,18]
[342860151,1732187477718,-735.23,0.00041095,18]
[342860152,1732187477732,-500.0,0.00041095,18]
[342860153,1732187477741,-500.0,0.00041095,18]
[342860154,1732187477751,-1042.57,0.00041095,18]
[342860155,1732187477761,-500.0,0.00041095,18]
[342860156,1732187477770,-500.0,0.00041095,18]
[342860157,1732187477780,-815.3,0.00041095,18]
[342860158,1732187477789,-500.0,0.00041095,18]
[342860159,1732187477799,-500.0,0.00041095,18]
[342860160,1732187477808,-500.0,0.00041095,18]
[342860161,1732187477817,-819.61,0.00041095,18]
[342860162,1732187477827,-1138.42,0.00041095,18]
[342860163,1732187477836,-500.0,0.00041095,18]
[342860164,1732187477846,-3147.16,0.00041095,18]
[342860165,1732187477855,-981.8,0.00041095,18]
[342860166,1732187477865,-500.0,0.00041095,18]
[342860167,1732187477875,-500.0,0.00041095,18]
[342860168,1732187477884,-2215.13,0.00041095,18]
[342860169,1732187477893,-500.29300005,0.00041095,18]
[342860170,1732187477903,-500.0,0.00041095,18]
[342860171,1732187477912,-500.0,0.00041095,18]
[342860172,1732187477922,-500.0,0.00041095,18]
[342860173,1732187477931,-500.0,0.00041095,18]
[342860174,1732187477941,-1336.88,0.00041095,18]
[342860175,1732187477951,-500.0,0.00041095,18]
[342860176,1732187477960,-2612.26,0.00041095,18]
[342860177,1732187477969,-500.0,0.00041095,18]
[342860178,1732187477982,-500.0,0.00041095,18]
[342860179,1732187477992,-2152.03,0.00041095,18]
[342860180,1732187478002,-555.35,0.00041095,18]
[342860181,1732187478012,-844.96,0.00041095,18]
[342860182,1732187478023,-500.0,0.00041095,18]
[342860183,1732187478033,-773.33,0.00041095,18]
[342860184,1732187478043,-500.0,0.00041095,18]
[342860185,1732187478054,-500.0,0.00041095,18]
[342860186,1732187478064,-500.0,0.00041095,18]
[342860187,1732187478074,-500.0,0.00041095,18]
[342860188,1732187478084,-876.96,0.00041095,18]
[342860189,1732187478095,-539.55342547,0.00041095,18]
[342860190,1732187478105,-1937.15,0.00041095,18]
[342860191,1732187478116,-500.0,0.00041095,18]
[342860192,1732187478126,-5273.53,0.00041095,18]
[342860193,1732187478141,-843.11,0.00041095,18]
[342860194,1732187478158,-523.97,0.00041095,18]
[342860195,1732187478170,-500.0,0.00041095,18]
[342860196,1732187478187,-951.07,0.00041095,18]
[342860197,1732187478206,-500.0,0.00041095,18]
[342860198,1732187478222,-500.0,0.00041095,18]
[342860199,1732187478243,-500.0,0.00041095,18]
[342860200,1732187478259,-1950.02,0.00041095,18]
[342860201,1732187478272,-500.0,0.00041095,18]
[342860202,1732187478286,-1429.54,0.00041095,18]
[342860203,1732187478301,-151.0,0.00041095,14]
[342860204,1732187478317,-500.0,0.00041095,18]
[342860205,1732187478332,-151.0,0.00041095,14]
[342860206,1732187478346,-1249.75,0.00041095,18]
[342860207,1732187478363,-500.0,0.00041095,18]
[342860208,1732187478379,-500.0,0.00041095,18]
[342860209,1732187478393,-2955.69,0.00041095,18]
[342860210,1732187478407,-500.0,0.00041095,18]
[342860211,1732187478423,-500.0,0.00041095,18]
[342860212,1732187478437,-500.0,0.00041095,18]
[342860213,1732187478450,-1733.15,0.00041095,18]
[342860214,1732187478462,-500.0,0.00041095,18]
[342860215,1732187478480,-500.0,0.00041095,18]
[342860216,1732187478493,-766.07,0.00041095,18]
[342860217,1732187478503,-500.0,0.00041095,18]
[342860218,1732187478516,-500.0,0.00041095,18]
[342860219,1732187478533,-3329.59,0.00041095,18]
[342860220,1732187478545,-4163.03,0.00041095,18]
[342860221,1732187478556,-500.0,0.00041095,18]
[342860222,1732187478569,-651.31,0.00041095,18]
[342860223,1732187478582,-500.0,0.00041095,18]
[342860224,1732187478595,-1355.27,0.00041095,18]
[342860225,1732187478608,-500.0,0.00041095,18]
[342860226,1732187478621,-674.93,0.00041095,18]
[342860227,1732187478634,-521.9,0.00041095,18]
[342860228,1732187478647,-500.0,0.00041095,18]
[342860229,1732187478660,-500.0,0.00041095,18]
[342860230,1732187478674,-500.0,0.00041095,18]
[342860231,1732187478687,-633.75,0.00041095,18]
[342860232,1732187478701,-4957.36,0.00041095,18]
[342860233,1732187478713,-500.0,0.00041095,18]
[342860234,1732187478728,-500.0,0.00041095,18]
[342860235,1732187478741,-543.02764959,0.00041095,18]
[342860236,1732187478755,-506.37715951,0.00041095,18]
[342860237,1732187478769,-577.53,0.00041095,18]
[342860238,1732187478782,-500.0,0.00041095,18]
[342860239,1732187478794,-500.0,0.00041095,18]
[342860240,1732187478807,-500.0,0.00041095,18]
[342860241,1732187478820,-680.58,0.00041095,18]
[342860242,1732187478833,-500.0,0.00041095,18]
[342860243,1732187478845,-500.0,0.00041095,18]
[342860244,1732187478859,-1758.22,0.00041095,18]
[342860245,1732187478872,-500.0,0.00041095,18]
[342860246,1732187478885,-500.0,0.00041095,18]
[342860247,1732187478899,-300.0,0.00041095,18]
[342860248,1732187478912,-643.78,0.00041095,18]
[342860249,1732187478925,-500.0,0.00041095,18]
[342860250,1732187478938,-500.0,0.00041095,18]
[342860251,1732187478951,-626.4,0.00041095,18]
[342860252,1732187478965,-500.0,0.00041095,18]
[342860253,1732187478979,-789.83,0.00041095,18]
[342860254,1732187478997,-500.0,0.00041095,18]
[342860255,1732187479010,-500.0,0.00041095,18]
[342860256,1732187479024,-500.0,0.00041095,18]
[342860257,1732187479037,-500.0,0.00041095,18]
[342860258,1732187479051,-2617.35,0.00041095,18]
[342860259,1732187479064,-500.0,0.00041095,18]
[342860260,1732187479077,-1698.42,0.00041095,18]
[342860261,1732187479092,-2208.9,0.00041095,18]
[342860262,1732187479105,-500.0,0.00041095,18]
[342860263,1732187479118,-1506.99,0.00041095,18]
[342860264,1732187479131,-500.0,0.00041095,18]
[342860265,1732187479145,-500.0,0.00041095,18]
[342860266,1732187479160,-3072.86,0.00041095,18]
[342860267,1732187479182,-51292.62,0.00041095,18]
[342860268,1732187479196,-367.74,0.00041095,7]
[342860269,1732187479209,-500.0,0.00041095,18]
[342860270,1732187479222,-850.0,0.00041095,120]
[342860271,1732187479237,-2336.18,0.00041095,18]
[342860272,1732187479252,-1258.06,0.00041095,18]
[342860273,1732187479265,-3210.72,0.00041095,18]
[342860274,1732187479280,-666.53,0.00041095,18]
[342860275,1732187479293,-500.0,0.00041095,18]
[342860276,1732187479308,-589.96,0.00041095,18]
[342860277,1732187479322,-2932.63,0.00041095,18]
[342860278,1732187479335,-500.0,0.00041095,18]
[342860279,1732187479350,-2339.53,0.00041095,18]
[342860280,1732187479363,-500.0,0.00041095,18]
[342860281,1732187479377,-5095.75,0.00041095,18]
[342860282,1732187479391,-1375.25,0.00041095,18]
[342860283,1732187479404,-500.0,0.00041095,18]
[342860284,1732187479417,-972.51,0.00041095,18]
[342860285,1732187479429,-500.0,0.00041095,18]
[342860286,1732187479442,-500.0,0.00041095,18]
[342860287,1732187479455,-2237.11,0.00041095,18]
[342860288,1732187479468,-1159.68,0.00041095,18]
[342860289,1732187479483,-500.0,0.00041095,18]
[342860290,1732187479497,-1125.7,0.00041095,18]
[342860291,1732187479510,-500.0,0.00041095,18]
[342860292,1732187479524,-500.0,0.00041095,18]
[342860293,1732187479538,-1351.58,0.00041095,18]
[342860294,1732187479552,-514.01568177,0.00041095,18]
[342860295,1732187479566,-1872.72,0.00041095,18]
[342860296,1732187479580,-151.0,0.00041095,14]
[342860297,1732187479594,-500.0,0.00041095,18]
[342860298,1732187479608,-151.0,0.00041095,14]
[342860299,1732187479622,-151.0,0.00041095,14]
[342860300,1732187479635,-510.71811103,0.00041095,18]
[342860301,1732187479648,-500.0,0.00041095,18]
[342860302,1732187479662,-462.90202433,0.00041095,18]
[342860303,1732187479675,-500.0,0.00041095,18]
[342860304,1732187479688,-500.0,0.00041095,18]
[342860305,1732187479701,-500.0,0.00041095,18]
[342860306,1732187479714,-1456.98,0.00041095,18]
[342860307,1732187479729,-5058.16,0.00041095,18]
[342860308,1732187479743,-500.0,0.00041095,18]
[342860309,1732187479756,-500.0,0.00041095,18]
[342860310,1732187479770,-1311.84,0.00041095,18]
[342860311,1732187479782,-500.0,0.00041095,18]
[342860312,1732187479796,-500.0,0.00041095,18]
[342860313,1732187479809,-3263.54,0.00041095,18]
[342860314,1732187479822,-500.0,0.00041095,18]
[342860315,1732187479836,-500.0,0.00041095,18]
[342860316,1732187479848,-1129.42,0.00041095,18]
[342860317,1732187479862,-1859.51,0.00041095,18]
[342860318,1732187479875,-2630.54,0.00041095,18]
[342860319,1732187479887,-1844.81,0.00041095,18]
[342860320,1732187479902,-5690.7,0.00041095,18]
[342860321,1732187479915,-500.0,0.00041095,18]
[342860322,1732187479927,-500.0,0.00041095,18]
[342860323,1732187479941,-569.48,0.00041095,18]
[342860324,1732187479954,-500.0,0.00041095,18]
[342860325,1732187479973,-500.0,0.00041095,120]
[342860326,1732187479990,-500.0,0.00041095,18]
[342860327,1732187480000,-1783.52,0.00041095,120]
[342860328,1732187480009,-616.39,0.00041095,18]
[342860329,1732187480019,-1794.91,0.00041095,18]
[342860330,1732187480028,-753.92,0.00041095,18]
[342860331,1732187480037,-953.73,0.00041095,18]
[342860332,1732187480047,-691.36,0.00041095,18]
[342860333,1732187480056,-500.0,0.00041095,18]
[342860334,1732187480065,-500.0,0.00041095,18]
[342860335,1732187480074,-500.0,0.00041095,18]
[342860336,1732187480083,-500.0,0.00041095,18]
[342860337,1732187480092,-500.0,0.00041095,18]
[342860338,1732187480101,-1175.82,0.00041095,18]
[342860339,1732187480111,-500.0,0.00041095,16]
[342860340,1732187480120,-500.0,0.00041095,18]
[342860341,1732187480129,-664.18,0.00041095,18]
[342860342,1732187480138,-1782.6,0.00041095,18]
[342860343,1732187480147,-967.23,0.00041095,18]
[342860344,1732187480160,-500.0,0.00041095,18]
[342860345,1732187480169,-659.11,0.00041095,18]
[342860346,1732187480179,-151.0,0.00041095,14]
[342860347,1732187480188,-667.53,0.00041095,18]
[342860348,1732187480197,-151.0,0.00041095,14]
[342860349,1732187480208,-151.0,0.00041095,14]
[342860350,1732187480217,-500.0,0.00041095,18]
[342860351,1732187480228,-500.0,0.00041095,18]
[342860352,1732187480237,-500.0,0.00041095,18]
[342860353,1732187480247,-611.02,0.00041095,18]
[342860354,1732187480257,-12994.52,0.00041095,18]
[342860355,1732187480266,-500.0,0.00041095,18]
[342860356,1732187480275,-500.0,0.00041095,18]
[342860357,1732187480284,-500.0,0.00041095,18]
[342860358,1732187480293,-500.0,0.00041095,18]
[342860359,1732187480302,-500.0,0.00041095,18]
[342860360,1732187480311,-500.0,0.00041095,18]
[342860361,1732187480321,-500.0,0.00041095,18]
[342860362,1732187480330,-573.10625691,0.00041095,18]
[342860363,1732187480339,-5974.65,0.00041095,18]
[342860364,1732187480348,-714.01,0.00041095,18]
[342860365,1732187480358,-500.0,0.00041095,18]